Posting Date,Expenditure Area,Supplier Name,Amount,Expense Type,Reason for Expense
26-Feb-21,Corporate Management Team,Absolute,185.40,Specific Campaigns / Projects expenditure,Various electrical and household items from direct line fund
19-Feb-21,Corporate Management Team,Amazon Prime,7.99,Specific Campaigns / Projects expenditure,Delivery charge. Awaiting refund
24-Feb-21,Corporate Management Team,Amazon Prime,-7.99,Specific Campaigns / Projects expenditure,Refund for delivery charges
26-Feb-21,Corporate Management Team,Amazon.Co.Uk,41.67,Specific Campaigns / Projects expenditure,Various electrical and household items from direct line fund
26-Feb-21,Corporate Management Team,Amznmktplace,12.47,Specific Campaigns / Projects expenditure,Various electrical and household items from direct line fund
19-Feb-21,Corporate Management Team,Argos Ltd,28.29,Specific Campaigns / Projects expenditure,Bedding for West Villa direct line fund
25-Feb-21,Corporate Management Team,Argos Ltd,265.75,Specific Campaigns / Projects expenditure,Various electrical and household items from direct line fund
19-Feb-21,Corporate Management Team,Currys Online,637.50,Specific Campaigns / Projects expenditure,Electronics for west villa direct line fund
25-Feb-21,Corporate Management Team,Currys Online,730.00,Specific Campaigns / Projects expenditure,Various electrical and household items from direct line fund
26-Feb-21,Corporate Management Team,Currys Online,547.50,Specific Campaigns / Projects expenditure,Various electrical and household items from direct line fund
22-Feb-21,Corporate Management Team,Dunelm,65.83,Specific Campaigns / Projects expenditure,Bedding for West villa direct line fund
11-Feb-21,Corporate Management Team,Www.Nitrotek.Co.Uk,385.40,Specific Campaigns / Projects expenditure,Bike for resident at west villa to enable transport to work
19-Feb-21,Culture & Environment Services,Accu.Co.Uk,8.95,Equipment / Furniture / Materials,locker screws
01-Feb-21,Culture & Environment Services,Adobe Il Creative Cld,198.68,Miscellaneous Stock  - Purchases,drawing software for Landscape Officer
17-Feb-21,Culture & Environment Services,Amazon.Co.Uk,3.32,Equipment / Furniture / Materials,Memorial CD for OCC
24-Feb-21,Culture & Environment Services,Amazon.Co.Uk,8.73,Equipment / Furniture / Materials,Card for templates
19-Jun-20,Culture & Environment Services,Amznmktplace,24.98,Equipment / Furniture / Materials,Bags for Services First Aid Additions
29-Jul-20,Culture & Environment Services,Amznmktplace,24.98,Equipment / Furniture / Materials,Bags for Services First Aid Additions
10-Sep-20,Culture & Environment Services,Amznmktplace,19.98,Equipment / Furniture / Materials,Bags for Services First Aid Additions
26-Oct-20,Culture & Environment Services,Amznmktplace,39.97,Equipment / Furniture / Materials,Bags for Services First Aid Additions x 2
04-Feb-21,Culture & Environment Services,Amznmktplace,12.49,Equipment / Furniture / Materials,Ethernet Cable
11-Feb-21,Culture & Environment Services,Amznmktplace,30.68,Equipment / Furniture / Materials,small equipment
23-Feb-21,Culture & Environment Services,Amznmktplace,272.92,Equipment / Furniture / Materials,Defibrillator battery
08-Oct-20,Culture & Environment Services,Amznmktplace,30.39,Materials and Supplies - Miscellaneous,COVID related purchase
20-Jan-21,Culture & Environment Services,Amznmktplace,174.87,Materials and Supplies - Miscellaneous,COVID related purchase
25-Jan-21,Culture & Environment Services,Amznmktplace,29.98,Materials and Supplies - Miscellaneous,COVID related purchase
01-Feb-21,Culture & Environment Services,Amznmktplace,5.82,Materials and Supplies - Miscellaneous,Motorola Phone Case
17-Feb-21,Culture & Environment Services,Amznmktplace,12.46,Materials and Supplies - Miscellaneous,Tablet Case- CHRISTCHURCH HUB
05-Feb-21,Culture & Environment Services,Amznmktplace,12.48,Stationery,Stationery for Waste Services
12-Feb-21,Culture & Environment Services,Amznmktplace,19.97,Stationery,Tags for hears applications
13-Jan-21,Culture & Environment Services,Amznmktplace,16.07,Telecommunication Costs - Mobiles,Phone case protector
19-Feb-21,Culture & Environment Services,Amznmktplace,9.44,Telecommunication Costs - Mobiles,PHONE CASE FOR CLEANSING STAFF
14-Jan-21,Culture & Environment Services,Amznmktplace Amazon.Co.Uk,9.57,Materials and Supplies - Miscellaneous,Chain saw oil
15-Feb-21,Culture & Environment Services,Amznmktplace Amazon.Co.Uk,20.83,Stationery,stationary supplies
17-Feb-21,Culture & Environment Services,Argos Ltd,16.66,Computer Consumables and other Minor IT costs,USB's for CCTV downloads.
21-May-20,Culture & Environment Services,Argos Ltd,83.33,Equipment / Furniture / Materials,Display Cabinet
19-Nov-20,Culture & Environment Services,Argos Ltd,133.29,Equipment / Furniture / Materials,Dressing Room Fridge
17-Feb-21,Culture & Environment Services,Argos Ltd,24.99,Equipment / Furniture / Materials,Blutooth speaker for OCC
17-Feb-21,Culture & Environment Services,Argos Ltd,24.99,Equipment / Furniture / Materials,Blutooth speaker for OCC 
17-Feb-21,Culture & Environment Services,Argos Ltd,-24.99,Equipment / Furniture / Materials,Refund for Blutooth speaker for OCC
15-Jul-20,Culture & Environment Services,Asda Stores 4278,34.90,Catering/Beverages,Water
04-Feb-21,Culture & Environment Services,B & Q 1315,5.79,Equipment / Furniture / Materials,Caulking gun for stair carpet riser glue
22-Jan-21,Culture & Environment Services,B & Q 1315,11.67,Materials and Supplies - Miscellaneous,Block Brass Padlock and Key x 1
27-Jan-21,Culture & Environment Services,B & Q 1315,11.04,Materials and Supplies - Miscellaneous,Box for restocking of first aid and PPE supplies
26-Feb-21,Culture & Environment Services,B & Q 1315,47.68,Materials and Supplies - Miscellaneous,"Plywood, Screws, Timber, Secateurs"
05-Feb-21,Culture & Environment Services,B & Q 1315,17.95,Miscellaneous Stock  - Purchases,Tarmac Edging - ORWELL COUNTRY PARK
23-Feb-21,Culture & Environment Services,B & Q 1315,5.04,Miscellaneous Stock  - Purchases,Blades for cutting wood - SPROUGHTON
03-Jun-20,Culture & Environment Services,B&m 440 - Copdock,31.67,Equipment / Furniture / Materials,Shelving & Brackets
03-Jun-20,Culture & Environment Services,B&q Direct,24.75,Equipment / Furniture / Materials,Racking for Glasses
19-Feb-21,Culture & Environment Services,Bag Agg Ltd,27.25,Materials and Supplies - Miscellaneous,TYPE 1 - CHANTRY HUB
19-Feb-21,Culture & Environment Services,Bag Agg Ltd,27.25,Materials and Supplies - Miscellaneous,TYPE 1 - CHANTRY HUB
19-Feb-21,Culture & Environment Services,Bag Agg Ltd,27.25,Materials and Supplies - Miscellaneous,TYPE 1 - CHANTRY HUB
10-Feb-21,Culture & Environment Services,Coastal Building Supplie,162.50,Materials and Supplies - Miscellaneous,25 bags Rock Salt
10-Feb-21,Culture & Environment Services,Coastal Building Supplie,364.00,Materials and Supplies - Miscellaneous,De-Icing salt - PARKS
12-Feb-21,Culture & Environment Services,Coastal Building Supplie,78.00,Materials and Supplies - Miscellaneous,White De-icer bags x 12
15-Feb-21,Culture & Environment Services,Coastal Building Supplie,162.50,Materials and Supplies - Miscellaneous,GRITTING SALT FOR PARKS
28-Jan-21,Culture & Environment Services,Cpw Locksmiths And Securi,118.33,Materials and Supplies - Miscellaneous,locks for cemetery gates
03-Feb-21,Culture & Environment Services,Digdat,30.00,Miscellaneous Stock  - Purchases,Water Stat plans
14-Aug-20,Culture & Environment Services,Displaysense.Co.Uk,201.99,Equipment / Furniture / Materials,Large Sign Boards - Corn Hill
10-Sep-20,Culture & Environment Services,Displaysense.Co.Uk,106.99,Equipment / Furniture / Materials,Large Sign Boards - Corn Hill
10-Feb-21,Culture & Environment Services,Dvla Vehicle Tax,167.50,Direct Transport Costs,VEHICLE TAX
10-Feb-21,Culture & Environment Services,Dvla Vehicle Tax,267.50,Direct Transport Costs,VEHICLE TAX
10-Feb-21,Culture & Environment Services,Dvla Vehicle Tax,267.50,Direct Transport Costs,VEHICLE TAX
10-Feb-21,Culture & Environment Services,Dvla Vehicle Tax,267.50,Direct Transport Costs,VEHICLE TAX
10-Feb-21,Culture & Environment Services,Dvla Vehicle Tax,267.50,Parks Vehicle Costs,VEHICLE TAX
10-Feb-21,Culture & Environment Services,Dvla Vehicle Tax,267.50,Parks Vehicle Costs,VEHICLE TAX
10-Feb-21,Culture & Environment Services,Dvla Vehicle Tax,267.50,Parks Vehicle Costs,VEHICLE TAX
10-Feb-21,Culture & Environment Services,Dvla Vehicle Tax,267.50,Parks Vehicle Costs,VEHICLE TAX
10-Feb-21,Culture & Environment Services,Dvla Vehicle Tax,267.50,Parks Vehicle Costs,VEHICLE TAX
10-Feb-21,Culture & Environment Services,Dvla Vehicle Tax,267.50,Parks Vehicle Costs,VEHICLE TAX
10-Feb-21,Culture & Environment Services,Dvla Vehicle Tax,267.50,Parks Vehicle Costs,VEHICLE TAX
12-Feb-21,Culture & Environment Services,Dvla Vehicle Tax,267.50,Parks Vehicle Costs,VEHICLE TAX
24-Feb-21,Culture & Environment Services,Elmers Hardware,20.82,Materials and Supplies - Miscellaneous,Power cut saw - CHANTRY PARK
04-Feb-21,Culture & Environment Services,Eoe Coop,2.58,Materials and Supplies - Miscellaneous,Sundries for Waste Services
02-Feb-21,Culture & Environment Services,Feb 2021 Conference,50.00,Training Expenses,Market Training
21-Jan-21,Culture & Environment Services,Groundsman Tools And Supp,335.10,Materials and Supplies - Miscellaneous,Various gardening tools ie rake bins loppers
01-Feb-21,Culture & Environment Services,Halfords 0883,8.33,Materials and Supplies - Miscellaneous,Batteries for Hand Sanitisers
08-Feb-21,Culture & Environment Services,Home Bargains,3.64,Materials and Supplies - Miscellaneous,Sundries for Waste Services
24-Feb-21,Culture & Environment Services,Honey Brothers Ltd,253.35,Materials and Supplies - Miscellaneous,Stein fibre glass poles / saw pod. handles
26-Feb-21,Culture & Environment Services,Horticultural Sppls Ltd,157.55,Miscellaneous Stock  - Purchases,Various materials fro Parks - LANDSCAPE TEAM
15-Jan-21,Culture & Environment Services,Ipserv,1.42,Equipment / Furniture / Materials,Van
08-Feb-21,Culture & Environment Services,Jewson Ltd,51.04,Materials and Supplies - Miscellaneous,Large wipes and floor tapel
01-Feb-21,Culture & Environment Services,Johnson Cleaners UK Lt,29.08,Cleaning Supplies,Cleaning of Chapel suits
21-Jan-21,Culture & Environment Services,Johnson Cleaners UK Lt,11.67,Clothing / Uniform & Laundry,Dry Cleaning
18-Feb-21,Culture & Environment Services,Kiln Farm Nursery,79.91,Materials and Supplies - Miscellaneous,"10 x Plants, 1 x bag Compost"
03-Dec-20,Culture & Environment Services,Liquidline Vt,511.82,Catering/Beverages,Coffee and tea suppliers for police hire
28-Jan-21,Culture & Environment Services,Lumberjacks,189.00,Miscellaneous Stock  - Purchases,Material for fence installation - SPROUGHTON
28-Jan-21,Culture & Environment Services,Lumberjacks,318.30,Miscellaneous Stock  - Purchases,Material for fence installation - SPROUGHTON
03-Feb-21,Culture & Environment Services,Lumberjacks,501.10,Miscellaneous Stock  - Purchases,Edging for pathway installation - SPROUGHTON
22-Feb-21,Culture & Environment Services,Lumberjacks,147.40,Miscellaneous Stock  - Purchases,Path Edging - SPROUGHTON
06-Apr-20,Culture & Environment Services,Makro Self Service Ipswic,216.44,Equipment / Furniture / Materials,"Cleaning Products, containers for Food Drops"
11-May-20,Culture & Environment Services,Makro Self Service Ipswic,217.88,Equipment / Furniture / Materials,"Cleaning Products, containers for Food Drops"
16-Feb-21,Culture & Environment Services,Marks&spencer Plc,27.92,Clothing / Uniform & Laundry,1 packs of 3 shirts
18-Jun-20,Culture & Environment Services,Paypal,159.93,Clothing / Uniform & Laundry,PPE Uniform
06-Jul-20,Culture & Environment Services,Paypal,91.66,Clothing / Uniform & Laundry,PPE Footwear
03-Aug-20,Culture & Environment Services,Paypal,139.04,Clothing / Uniform & Laundry,PPE Uniform
11-May-20,Culture & Environment Services,Paypal,23.30,Equipment / Furniture / Materials,Bags for Services First Aid Additions
11-May-20,Culture & Environment Services,Paypal,28.33,Equipment / Furniture / Materials,Dressing Room Shower Fittings
11-May-20,Culture & Environment Services,Paypal,29.13,Equipment / Furniture / Materials,Shower Fittings Cottage Regent
11-May-20,Culture & Environment Services,Paypal,37.49,Equipment / Furniture / Materials,Production Office Storage
11-May-20,Culture & Environment Services,Paypal,54.16,Equipment / Furniture / Materials,Equipment Store Racking Production
13-Jul-20,Culture & Environment Services,Paypal,16.20,Equipment / Furniture / Materials,Measure Marked Jugs
27-Jul-20,Culture & Environment Services,Paypal,15.00,Equipment / Furniture / Materials,First Aid Supplies
29-Jul-20,Culture & Environment Services,Paypal,19.99,Equipment / Furniture / Materials,Bags for Services First Aid Additions
29-Jul-20,Culture & Environment Services,Paypal,31.86,Equipment / Furniture / Materials,Stock Storage Boxes
03-Aug-20,Culture & Environment Services,Paypal,31.40,Equipment / Furniture / Materials,Stock Storage Boxes
07-Aug-20,Culture & Environment Services,Paypal,39.98,Equipment / Furniture / Materials,Extendable Barrier
10-Sep-20,Culture & Environment Services,Paypal,29.95,Equipment / Furniture / Materials,Extendable Barrier
30-Nov-20,Culture & Environment Services,Paypal,181.24,Equipment / Furniture / Materials,Corn Hill Safety Displays
16-Dec-20,Culture & Environment Services,Paypal,9.12,Telecommunication Costs - Mobiles,Tablet protector cover
16-Dec-20,Culture & Environment Services,Paypal,12.87,Telecommunication Costs - Mobiles,Hand strap for tablet
03-Jun-20,Culture & Environment Services,Premier Farnell,100.08,Equipment / Furniture / Materials,Monitor
05-Jun-20,Culture & Environment Services,Premier Farnell,18.08,Equipment / Furniture / Materials,Sound Cabling
08-Jun-20,Culture & Environment Services,Premier Farnell,99.00,Equipment / Furniture / Materials,"Till Drawer, Bracket and cable"
03-Aug-20,Culture & Environment Services,Premier Farnell,12.56,Equipment / Furniture / Materials,Cable tidy's
25-Jan-21,Culture & Environment Services,Royal Mail Charges,1.50,Postage Costs,Postage paid as customer did pay full amount
27-Jan-21,Culture & Environment Services,Rs Components,19.60,Equipment / Furniture / Materials,Bin keys for Cleansing
26-Feb-21,Culture & Environment Services,Rumwoods Ltd,272.92,Materials and Supplies - Miscellaneous,replacement roses
27-Jan-21,Culture & Environment Services,Sainsburys S/mkt,0.92,Materials and Supplies - Miscellaneous,Sundries for Waste Services
01-Feb-21,Culture & Environment Services,Sainsburys S/mkt,8.42,Materials and Supplies - Miscellaneous,Sundries for Waste Services
09-Feb-21,Culture & Environment Services,Sainsburys S/mkt,1.83,Materials and Supplies - Miscellaneous,Sundries for Waste Services
26-Feb-21,Culture & Environment Services,Sainsburys S/mkt,8.48,Materials and Supplies - Miscellaneous,Sundries for Waste Services
21-Jan-21,Culture & Environment Services,Sainsburys S/mkts,0.92,Materials and Supplies - Miscellaneous,Sundries for Waste Services
28-Jan-21,Culture & Environment Services,Sainsburys S/mkts,0.92,Materials and Supplies - Miscellaneous,Sundries for Waste Services
16-Feb-21,Culture & Environment Services,Sainsburys S/mkts,11.40,Materials and Supplies - Miscellaneous,Sundries for Waste Services
28-Jan-21,Culture & Environment Services,Screwfix Dir Ltd,9.98,Materials and Supplies - Miscellaneous,Material for tree Planting - CHANTRY HUB
25-Feb-21,Culture & Environment Services,Screwfix Dir Ltd,10.00,Materials and Supplies - Miscellaneous,Line Marker - SPROUGHTON
20-Jan-21,Culture & Environment Services,Screwfix Direct,17.83,Equipment / Furniture / Materials,Batteries and tools.
21-Jan-21,Culture & Environment Services,Screwfix Direct,10.00,Equipment / Furniture / Materials,Spray paint for foot prints
02-Feb-21,Culture & Environment Services,Screwfix Direct,66.63,Equipment / Furniture / Materials,"worklight, electric tester"
03-Feb-21,Culture & Environment Services,Screwfix Direct,20.64,Equipment / Furniture / Materials,Strong adhesive for stair carpet risers + long tape measure
05-Feb-21,Culture & Environment Services,Screwfix Direct,63.74,Equipment / Furniture / Materials,Hot water urn
17-Feb-21,Culture & Environment Services,Screwfix Direct,12.07,Equipment / Furniture / Materials,"door lock, spray paint for stage"
10-Feb-21,Culture & Environment Services,Screwfix Direct,32.21,Materials and Supplies - Miscellaneous,Batteries for hand sanitiser dispensers in parks/play areas
27-Jan-21,Culture & Environment Services,Screwfix Direct,49.93,Miscellaneous Stock  - Purchases,Bosch cutting disc - LANDSCAPE TEAM
01-Feb-21,Culture & Environment Services,Screwfix Direct,20.00,Miscellaneous Stock  - Purchases,Line Marking paint - LANDSCAPE TEAM
18-Feb-21,Culture & Environment Services,Screwfix Direct,20.00,Miscellaneous Stock  - Purchases,Line marking paint - LANDSCAPE TEAM
29-Jan-21,Culture & Environment Services,Sproughton Garden Machine,6.50,Materials and Supplies - Miscellaneous,1l 2str oil for petrol mix
12-Feb-21,Culture & Environment Services,Starttraffic.Uk,214.50,Materials and Supplies - Miscellaneous,Men at Work signs
19-Feb-21,Culture & Environment Services,Suffolk County Council,18.33,Equipment / Furniture / Materials,public health death certs.
01-Jun-20,Culture & Environment Services,Suffolk County Council,58.33,Licences & Other Fees,Licence for erection of lamppost banners
01-Jun-20,Culture & Environment Services,Suffolk County Council,58.33,Licences & Other Fees,Licence for erection of lamppost banners
01-Jun-20,Culture & Environment Services,Suffolk County Council,58.33,Licences & Other Fees,Licence for erection of lamppost banners
01-Jun-20,Culture & Environment Services,Suffolk County Council,58.33,Licences & Other Fees,Licence for erection of lamppost banners
01-Jun-20,Culture & Environment Services,Suffolk County Council,58.33,Licences & Other Fees,Licence for erection of lamppost banners
04-Feb-21,Culture & Environment Services,Suffolk Fastener (Ipsw,15.37,Equipment / Furniture / Materials,Nut lock & brushes - PLAY AREA INSPECTOR
24-Feb-21,Culture & Environment Services,Suffolk Fastener (Ipsw,4.29,Materials and Supplies - Miscellaneous,Screws & Bolts - CHANTRY HUB
26-Feb-21,Culture & Environment Services,Suffolk Fastener (Ipsw,7.50,Materials and Supplies - Miscellaneous,Duct Tape - SPROUGHTON
05-Feb-21,Culture & Environment Services,The Range,12.49,Materials and Supplies - Miscellaneous,Loopers - WHITTON
03-Feb-21,Culture & Environment Services,The Range,4.98,Stationery,Stationery for Waste Services
19-Feb-21,Culture & Environment Services,The Windscreen Co,234.00,Direct Transport Costs,GREEN WINDSCREEN REPLACEMENT 
10-Feb-21,Culture & Environment Services,The Windscreen Co,145.00,Materials and Supplies - Miscellaneous,Windscreen repair
03-Feb-21,Culture & Environment Services,Timpson Ltd,23.33,Materials and Supplies - Miscellaneous,KEYS CUT - WHITTON
08-Feb-21,Culture & Environment Services,Toolstation Ltd,84.59,Miscellaneous Stock  - Purchases,Work lighting & grinding discs - ALEXANDRA PARK
14-Jan-21,Culture & Environment Services,Toolstation Uk,21.40,Materials and Supplies - Miscellaneous,Chain saw oil
08-Feb-21,Culture & Environment Services,Toolstation Uk,99.95,Miscellaneous Stock  - Purchases,items for Alexandra Park installation
03-Feb-21,Culture & Environment Services,Tp Ipswich,57.11,Equipment / Furniture / Materials,Material for bench repair - DALES OPEN SPACES
12-Feb-21,Culture & Environment Services,Tp Ipswich,24.43,Equipment / Furniture / Materials,Brackets - PALY AREA INSPECTOR
04-Feb-21,Culture & Environment Services,Tp Ipswich,"1,939.52",Miscellaneous Stock  - Purchases,Building material for Play Area Installation - ALEXANDRA PK
08-Feb-21,Culture & Environment Services,Tp Ipswich,522.22,Miscellaneous Stock  - Purchases,Salt for gritting parks
19-Feb-21,Culture & Environment Services,Train With Caws,84.00,Specific Campaigns / Projects expenditure,CAWS Long Covid Course 
18-Feb-21,Culture & Environment Services,Travis Perkins,48.81,Equipment / Furniture / Materials,Timber for bin bases - PLAY AREA INSPECTOR
08-Feb-21,Culture & Environment Services,Travis Perkins,-160.86,Miscellaneous Stock  - Purchases,Refund for non available stock items
16-Feb-21,Culture & Environment Services,Value Products Ltd,28.80,Fixtures & Fittings,Signage stickers
27-Jan-21,Culture & Environment Services,Wickes Ipswich,33.33,Materials and Supplies - Miscellaneous,8 x bags Meltaway Rock Salt
23-Feb-21,Culture & Environment Services,Wickes Ipswich,8.33,Materials and Supplies - Miscellaneous,Gravel bag - SPROUGHTON
09-Feb-21,Culture & Environment Services,Www.Banneruk.Com,69.74,Equipment / Furniture / Materials,Cups for NHS
27-Jan-21,Culture & Environment Services,Www.Banneruk.Com,48.16,Stationery,Stationery for Waste Services
28-Jan-21,Culture & Environment Services,Www.Banneruk.Com,25.32,Stationery,Stationery for Waste Services
17-Feb-21,Culture & Environment Services,Www.Banneruk.Com,4.78,Stationery,Stationery for Waste Services
17-Feb-21,Culture & Environment Services,Www.Banneruk.Com,17.74,Stationery,Stationery for Waste Services
05-Jan-21,Culture & Environment Services,Www.Cleanroomsuppliesltd,138.60,Materials and Supplies - Miscellaneous,PPE for Responders
22-Sep-20,Culture & Environment Services,Www.Lakedalepowertools,80.78,Equipment / Furniture / Materials,Equipment for Cleansing
09-Feb-21,Culture & Environment Services,Www.Licencecheck.Co.Uk,840.00,Direct Transport Costs,200 credits purchased for Davis licence check
04-Feb-21,Culture & Environment Services,Www.Lockshopdirect.Co.,60.55,Fixtures & Fittings,Padlocks
14-Jan-21,Culture & Environment Services,Www.Pumpsalesdirect.Co,115.20,Materials and Supplies - Miscellaneous,grave digging equipment
19-Jun-20,Culture & Environment Services,Www.Safetyfirstaid.Co.,22.75,Equipment / Furniture / Materials,First Aid Supplies
28-Jul-20,Culture & Environment Services,Www.Safetyfirstaid.Co.,29.95,Equipment / Furniture / Materials,First Aid Supplies
10-Dec-20,Culture & Environment Services,Www.Ucs.Ac.Uk,-37.50,Specific Campaigns / Projects expenditure,Course
08-Feb-21,Culture & Environment Services,Zoro Uk,63.30,Clothing / Uniform & Laundry,Gloves
05-Feb-21,Development,Halfords On Line,21.25,Direct Transport Costs,"Vehicle ice scraper, de-icer and screen wash x 3"
08-Jan-21,Development,Instit Of Occptnl Safe,133.00,Non Contracted_Professional Services,IOSH membership 
08-Feb-21,Development,Power Tools Direct,438.48,Equipment / Furniture / Materials,Electronic Spirit Levels x3
21-Jan-21,Development,Thomson Reuters UK Ltd,280.00,GF_Contract Repair & Maintenance,JCT Forms for Tenders x 4
04-Feb-21,Development,Thomson Reuters UK Ltd,144.00,Specific Campaigns / Projects expenditure,JCT Contract for Whitton Church Lane
01-Feb-21,Development,"Www,eastsuffolk.Gov.Uk",192.00,Non Contracted_Professional Services,Partnership Inspections 
16-Feb-21,Development,Www.Ciob.Org.Uk,245.00,Non Contracted_Professional Services,CIOB membership 
12-Feb-21,Development,Www.Iceland.Co.Uk,23.50,Subsistence & Conference/Seminar / Event Expenses,tea coffee milk etc
25-Feb-21,Finance & Revenues,Amazon.Co.Uk,116.73,Computer Equipment - Purchase,Laptop Sleeves
26-Feb-21,Finance & Revenues,Amazon.Co.Uk,142.67,Computer Equipment - Purchase,20 x Laptop Sleeves
15-Feb-21,Finance & Revenues,Amznmktplace,15.82,Equipment / Furniture / Materials,Monitor stand 
22-Feb-21,Finance & Revenues,Amznmktplace Amazon.Co.Uk,62.03,Computer Equipment - Purchase,Election kit - document camera
04-Feb-21,Finance & Revenues,Anker Online,29.16,Computer Equipment - Purchase,USB / Ethernet hub
26-Feb-21,Finance & Revenues,Bt Business Direct,"1,124.72",Capital Expenditure,Meeting/Reception camera
25-Feb-21,Finance & Revenues,Cbt Nuggets Llc,43.14,Training Expenses,IT Training
29-Jan-21,Finance & Revenues,Dri*,44.95,Computer Equipment - Purchase,PDF software
29-Jan-21,Finance & Revenues,Dri*,44.95,Computer Equipment - Purchase,PDF software
10-Feb-21,Finance & Revenues,Dri*,44.61,Computer Equipment - Purchase,PDF software
22-Feb-21,Finance & Revenues,Hue,514.50,Capital Expenditure,Election kit - document cameras
17-Feb-21,Finance & Revenues,Ipf,"3,760.00",Publications - Purchase,CIPFA Publications Subscription 1/4/21 to 31/3/22
23-Feb-21,Finance & Revenues,Ipf,"4,100.00",Subscriptions - Service Related,CIPFA Finance Advisory Network Subscription 1/4/21 - 31/3/22
19-Jan-21,Finance & Revenues,Microsoft*store,216.66,Computer Equipment - Purchase,Surface dock with Ethernet
09-Feb-21,Finance & Revenues,Msft *,37.50,Computer Software - Purchase,Power BI Licences
09-Feb-21,Finance & Revenues,Msft *,43.10,Housing  - other Costs,O365 E5 licence for Tenant's conference
15-Feb-21,Finance & Revenues,Msft * E0800dk34z,23.64,Equipment / Furniture / Materials,Power BI licences
26-Jan-21,Finance & Revenues,Ncs*cima Vue Exam,-91.67,Training Expenses,Cancelled exam fees refunded
05-Feb-21,Finance & Revenues,Ncs*cima Vue Exam,95.83,Training Expenses,Exam fees 
24-Feb-21,Finance & Revenues,Ncs*cima Vue Exam,-130.00,Training Expenses,Cancelled CIMA Exam
15-Feb-21,Finance & Revenues,One Direct,413.62,Computer Equipment - Purchase,Surface Dock with Ethernet
11-Feb-21,Finance & Revenues,Paypal,51.97,Computer Software - Purchase,Domain renewals
25-Feb-21,Finance & Revenues,Paypal,63.97,Web Service costs,Domain renewals
09-Feb-21,Finance & Revenues,Service Fees - Fraedom Pty Ltd,383.15,Computer Software - Maintenance,Fraedom card fees 01/01/21 to 31/01/21
24-Feb-21,Finance & Revenues,Www.4gon.Co.Uk,"1,574.05",Capital Expenditure,Network Secure Gateways
08-Feb-21,Finance & Revenues,Www.4gon.Co.Uk,152.35,Computer Equipment - Purchase,Webcam and Speakerphone
17-Feb-21,Finance & Revenues,Www.Aat-Org.Uk,101.00,Employee Expenses,AAT Student Membership
18-Jan-21,Finance & Revenues,Www.Ballicom.Co.Uk,621.61,Capital Expenditure,Surface Tablet
05-Feb-21,Finance & Revenues,Www.Cimaglobal.Com,100.00,Training Expenses,Exam Fees
18-Feb-21,Finance & Revenues,Www.Irrv.Org.Uk,158.33,Non Contracted_Professional Services,Council Tax Law and Practice - online guidance
18-Feb-21,Finance & Revenues,Www.Irrv.Org.Uk,145.83,Non Contracted_Professional Services,Rating Law and Practice
20-Jan-21,Finance & Revenues,Zoom.Us 888-799-9666,9.99,Computer Software - Purchase,Zoom conference for Local Plan
03-Feb-21,Housing & Community Services,Amazon Prime,7.99,Equipment / Furniture / Materials,Amazon Prime
15-Feb-21,Housing & Community Services,Amazon.Co.Uk,24.82,Miscellaneous Expenses,pens x 50 for all schemes
05-Feb-21,Housing & Community Services,Amz*hibuyeu,-12.07,Equipment / Furniture / Materials,refund for locking nuts with wheel that did not arrive
27-Jan-21,Housing & Community Services,Amznmktplace,12.07,Equipment / Furniture / Materials,replacement lock wheel turn nuts for ladders
08-Feb-21,Housing & Community Services,Amznmktplace,12.07,Equipment / Furniture / Materials,Locking nuts wheel handle for working at height equipment
23-Feb-21,Housing & Community Services,Amznmktplace,20.74,Equipment / Furniture / Materials,24 Cones
22-Feb-21,Housing & Community Services,Amznmktplace,85.00,Miscellaneous Expenses,cabinet for Walton Hse office
19-Feb-21,Housing & Community Services,Amznmktplace,14.98,Telecommunication Costs - Mobiles,Screen protectors
03-Feb-21,Housing & Community Services,Animal Courses Direct,399.00,Training Expenses,Animal Licensing Training Course 
25-Feb-21,Housing & Community Services,Argos Ltd,381.96,Specific Campaigns / Projects expenditure,Items from Personal budgets for Navigator clients
02-Feb-21,Housing & Community Services,Autodesk Ady,370.00,Equipment / Furniture / Materials,1 x years subscription
23-Feb-21,Housing & Community Services,Capita Gas,257.93,Employee Expenses,Gas Safe Registration
19-Feb-21,Housing & Community Services,Chartered Institute Of En,99.00,Training Expenses,air quality conference
10-Feb-21,Housing & Community Services,Collier & Catchpole,62.69,Materials and Supplies - Miscellaneous,Clay Double Header pipe
22-Jan-21,Housing & Community Services,Cpw Locksmiths And Securi,41.67,HRA Special Repairs & Maintenance,repair/replace/renew lock/keys to sheltered properties
03-Feb-21,Housing & Community Services,Cpw Locksmiths And Securi,105.00,HRA Special Repairs & Maintenance,repair/replace/renew lock/keys to sheltered properties
08-Feb-21,Housing & Community Services,Cpw Locksmiths And Securi,125.00,HRA Special Repairs & Maintenance,repair/replace/renew lock/keys to sheltered properties
18-Feb-21,Housing & Community Services,Cpw Locksmiths And Securi,60.00,HRA Special Repairs & Maintenance,repair/replace/renew lock/keys to sheltered properties
15-Feb-21,Housing & Community Services,Easyhotel Ipswich,118.80,Services for Clients,B & B
22-Dec-20,Housing & Community Services,Eoe Coop,20.00,Materials and Supplies - Miscellaneous,Supply Electric 
10-Dec-20,Housing & Community Services,Eoe Co-Op,20.00,Materials and Supplies - Miscellaneous,Supply Electric 
08-Jan-21,Housing & Community Services,Eoe Co-Op,20.00,Materials and Supplies - Miscellaneous,Supply Electric 
20-Jan-21,Housing & Community Services,Eoe Co-Op,20.00,Materials and Supplies - Miscellaneous,Supply Electric 
22-Jan-21,Housing & Community Services,Eoe Co-Op,30.00,Materials and Supplies - Miscellaneous,Supply Electric 
26-Jan-21,Housing & Community Services,Eoe Co-Op,30.00,Materials and Supplies - Miscellaneous,Supply Electric 
01-Feb-21,Housing & Community Services,Eoe Co-Op,30.00,Materials and Supplies - Miscellaneous,Supply Electric
08-Feb-21,Housing & Community Services,Eoe Co-Op,30.00,Materials and Supplies - Miscellaneous,Supply Electric
09-Feb-21,Housing & Community Services,Gen Register Office,14.00,Services for Clients,Birth Cert
03-Feb-21,Housing & Community Services,Gen Register Office,14.00,Specific Campaigns / Projects expenditure,Birth cert for Navigator client
04-Feb-21,Housing & Community Services,Indespension,9.82,Equipment / Furniture / Materials,trailer electrical connectors x2 
24-Feb-21,Housing & Community Services,Ipswich Bc,72.00,Capital Expenditure,Planning application 
18-Feb-21,Housing & Community Services,Ipswich Bc,-10.00,Transport Costs - Miscellaneous,Refund for testing of online form.
17-Feb-21,Housing & Community Services,Ipswich Borough Co,10.00,Transport Costs - Miscellaneous,Testing online form to ensure payment was working. Refunded.
03-Feb-21,Housing & Community Services,Martin McColl,25.00,Materials and Supplies - Miscellaneous,Supply Electric
14-Dec-20,Housing & Community Services,One Stop 0857,30.00,Materials and Supplies - Miscellaneous,Supply Electric
16-Dec-20,Housing & Community Services,One Stop 0857,30.00,Materials and Supplies - Miscellaneous,Supply Electric
14-Jan-21,Housing & Community Services,One Stop 0857,20.00,Materials and Supplies - Miscellaneous,Supply Electric
20-Jan-21,Housing & Community Services,One Stop 0857,20.00,Materials and Supplies - Miscellaneous,Supply Electric
24-Dec-20,Housing & Community Services,Possessionclaim.Go,325.00,Legal Services & Fees,Possession claim on line
18-Jan-21,Housing & Community Services,Possessionclaim.Go,325.00,Legal Services & Fees,Possession claim on line
18-Jan-21,Housing & Community Services,Possessionclaim.Go,325.00,Legal Services & Fees,possession claim on line
17-Feb-21,Housing & Community Services,Possessionclaim.Go,325.00,Legal Services & Fees,possession claim on line
17-Feb-21,Housing & Community Services,Security Industry,190.00,Employee Expenses,SIA CCTV Licence renewal for 3 years
17-Feb-21,Housing & Community Services,Southend County,20.00,Legal Services & Fees,Gas Warrant
27-Jan-21,Housing & Community Services,Spar,25.00,Materials and Supplies - Miscellaneous,Supply Electric
11-Feb-21,Housing & Community Services,The Skills Network,807.00,Training Expenses,E&D Training costs for Comm Engagement
01-Feb-21,Housing & Community Services,Toolstation Uk,85.89,Equipment / Furniture / Materials,P &D Apprentice Tools 
23-Feb-21,Housing & Community Services,Wickes Building,9.37,Materials and Supplies - Miscellaneous,Supplies
09-Feb-21,Housing & Community Services,Www.Banneruk.Com,85.07,Stationery,Stationery
24-Feb-21,Housing & Community Services,Www.Banneruk.Com,78.15,Stationery,Stationery
25-Feb-21,Housing & Community Services,Www.Banneruk.Com,8.00,Stationery,Stationery
01-Feb-21,Housing & Community Services,Www.Corgi-Direct.Com,78.59,Stationery,CP12 pads
02-Feb-21,People & Governance,Adobe Stock Trial,19.99,Computer Consumables and other Minor IT costs,Adobe Stock Credits
22-Jan-21,People & Governance,Amazon.Co.Uk,22.58,Computer Consumables and other Minor IT costs,Canono blue 551XL
24-Feb-21,People & Governance,Amazon.Co.Uk,61.53,Computer Consumables and other Minor IT costs,540/541XL x2
18-Feb-21,People & Governance,Amazon.Co.Uk,478.00,Specific Campaigns / Projects expenditure,REDACTED
23-Feb-21,People & Governance,Amznmktplace,44.97,Computer Consumables and other Minor IT costs,3x PG540
23-Feb-21,People & Governance,Amznmktplace,42.59,Miscellaneous Stock  - Purchases,Envelopes for the print room use
03-Feb-21,People & Governance,Cartridgepeople.Com,47.49,Computer Consumables and other Minor IT costs,Ink Cartridges
15-Sep-20,People & Governance,Companies House,13.00,Legal Services & Fees,companies house fees for council companies
15-Sep-20,People & Governance,Companies House,13.00,Legal Services & Fees,companies house fees for council companies
15-Sep-20,People & Governance,Companies House,13.00,Legal Services & Fees,companies house fees due on council companies
15-Sep-20,People & Governance,Companies House,13.00,Legal Services & Fees,companies house fees for council companies
19-Jan-21,People & Governance,Companies House,13.00,Legal Services & Fees,companies house fees for council companies
19-Jan-21,People & Governance,Companies House,13.00,Legal Services & Fees,companies house fees for council companies
19-Jan-21,People & Governance,Companies House,13.00,Legal Services & Fees,companies house fees for council companies
04-Dec-20,People & Governance,Dhl,166.67,Postage Costs,Postage for Made in Suffolk orders
26-Feb-21,People & Governance,Dhl,83.33,Postage Costs,Postage credits for online shop
10-Dec-20,People & Governance,Facebk *33pg8z68j2,16.67,Advertising/Publicity,Social media advertising
10-Dec-20,People & Governance,Facebk *33pg8z68j2,125.00,Advertising/Publicity,Social media advertising
07-Sep-20,People & Governance,Facebk *43wyvvj8j2,115.26,Advertising/Publicity,Facebook advertising
07-Sep-20,People & Governance,Facebk *43wyvvj8j2,181.40,Advertising/Publicity,Facebook advertising
08-Jan-21,People & Governance,Facebk *a5bpqyn7j2,92.44,Advertising/Publicity,Social media advertising
07-Oct-20,People & Governance,Facebk *dqff2xs7j2,26.41,Advertising/Publicity,Social media advertising
07-Oct-20,People & Governance,Facebk *dqff2xs7j2,248.27,Advertising/Publicity,Social media advertising
07-Oct-20,People & Governance,Facebk *dqff2xs7j2,77.70,Advertising/Publicity,Social media advertising
09-Nov-20,People & Governance,Facebk *z4fjwx28j2,355.63,Advertising/Publicity,Social media advertising
08-Feb-21,People & Governance,Freelance Offset Services,140.47,Computer Consumables and other Minor IT costs,Ink and Masters for RISO Envelope printer
22-Feb-21,People & Governance,Freelance Offset Services,43.34,Computer Consumables and other Minor IT costs,Riso ink for the print room to use
02-Feb-21,People & Governance,Google Ads7268098578,40.01,Advertising/Publicity,Google search campaign remaining spend for 1-4 Jan 2021
01-Feb-21,People & Governance,Halfords 0883,7.42,Direct Transport Costs,replace van light bulb
27-Nov-20,People & Governance,Mailchimp,265.08,Subscriptions - Service Related,Email marketing platform
14-Dec-20,People & Governance,Mailchimp,537.03,Subscriptions - Service Related,Email marketing platform
28-Dec-20,People & Governance,Mailchimp,261.52,Subscriptions - Service Related,Email Marketing
12-Jan-21,People & Governance,Mailchimp,524.42,Subscriptions - Service Related,Email Marketing
26-Jan-21,People & Governance,Mailchimp,258.41,Subscriptions - Service Related,Email Marketing
12-Feb-21,People & Governance,Mailchimp,511.12,Subscriptions - Service Related,Email Marketing
26-Feb-21,People & Governance,Mailchimp,251.92,Subscriptions - Service Related,Email marketing
26-Feb-21,People & Governance,Marks&spencer Plc Saca,6.67,Miscellaneous Functions & Events,REDACTED
13-Jan-21,People & Governance,Parcel2go.Com Ltd,17.25,Postage Costs,courier charge to dispatch contract to 3rd party
15-Feb-21,People & Governance,Shopify* 101268101,21.69,Financial Fees & Services,Made in Suffolk online shop
30-Nov-20,People & Governance,Shopify* 93592100,22.49,Financial Fees & Services,Made in Suffolk online shop
17-Dec-20,People & Governance,Shopify* 96222628,22.23,Financial Fees & Services,Made in Suffolk online shop
18-Jan-21,People & Governance,Shopify* 98688061,22.03,Financial Fees & Services,Made in Suffolk online shop
17-Feb-21,People & Governance,"Sprout Social, Inc",705.29,Advertising/Publicity,Social media management platform
07-Aug-20,People & Governance,Thomas Telford Limit,30.95,Legal Services & Fees,purchase of template NEC4 contract for comm team
23-Feb-21,People & Governance,Www.Accounts@iia.Org.U,250.00,Employee Expenses,IIA membership - mandatory for postholder.
14-Sep-20,People & Governance,Www.Banneruk.Com,23.50,Computer Consumables and other Minor IT costs,"Inks, sheltered housing"
09-Nov-20,People & Governance,Www.Banneruk.Com,21.62,Computer Consumables and other Minor IT costs,HP 304XL 
09-Nov-20,People & Governance,Www.Banneruk.Com,326.00,Computer Consumables and other Minor IT costs,Wide format magenta ink and maintenance cartridge
23-Nov-20,People & Governance,Www.Banneruk.Com,221.97,Computer Consumables and other Minor IT costs,Print Cartridges
23-Nov-20,People & Governance,Www.Banneruk.Com,55.71,Computer Consumables and other Minor IT costs,Print Cartridges
27-Nov-20,People & Governance,Www.Banneruk.Com,107.37,Computer Consumables and other Minor IT costs,Print Cartridges
14-Dec-20,People & Governance,Www.Banneruk.Com,31.00,Computer Consumables and other Minor IT costs,Print Cartridges
25-Jan-21,People & Governance,Www.Banneruk.Com,59.43,Computer Consumables and other Minor IT costs,Print Cartridges
25-Jan-21,People & Governance,Www.Banneruk.Com,25.66,Computer Consumables and other Minor IT costs,Print Cartridges
02-Feb-21,People & Governance,Www.Banneruk.Com,37.66,Computer Consumables and other Minor IT costs,Print Cartridges
05-Feb-21,People & Governance,Www.Banneruk.Com,63.00,Miscellaneous Stock  - Purchases,A4 Laminating Pouches
10-Feb-21,People & Governance,Www.Banneruk.Com,88.20,Miscellaneous Stock  - Purchases,Laminating Pouches for the print room use
24-Feb-21,People & Governance,Www.Banneruk.Com,501.52,Miscellaneous Stock  - Purchases,Bulk Envelopes for large print room mailings
09-Feb-21,People & Governance,Www.Paper.Co.Uk,322.64,Miscellaneous Stock  - Purchases,Various paper supplies for the print room
22-Feb-21,People & Governance,Www.Paper.Co.Uk,183.56,Miscellaneous Stock  - Purchases,Various paper stocks for Print Room use
22-Feb-21,People & Governance,Www.Presco-Uk.Com,57.12,Miscellaneous Stock  - Purchases,"Plastic Free Binding Covers, and Binding Combs for Print Rm"
15-Feb-21,People & Governance,Zoom.Us 888-799-9666,23.98,Specific Campaigns / Projects expenditure,Zoom Subscription for Council Meetings
,,,"48,161.98",,
